[Event "Late-Titled-Tuesday-Blitz-March-19-2024"]
[Site "Chess.com"]
[Date "2024.03.19"]
[Round "1"]
[White "Morscas"]
[Black "annasargsyan_m"]
[Result "1-0"]
[WhiteElo "2333"]
[BlackElo "2630"]
[TimeControl "180+1"]
[EndTime "14:09:05 PDT"]
[Termination "Morscas won by resignation"]

1. e4 {[%clk 0:02:57.6]} 1... c6 {[%clk 0:02:32]} 2. d4 {[%clk 0:02:54.9]} 2...
d5 {[%clk 0:02:32.9]} 3. exd5 {[%clk 0:02:55.5]} 3... cxd5 {[%clk 0:02:33]} 4.
c4 {[%clk 0:02:56.2]} 4... Nc6 {[%clk 0:02:33.8]} 5. Nc3 {[%clk 0:02:55.7]} 5...
Nf6 {[%clk 0:02:32.9]} 6. Nf3 {[%clk 0:02:55.7]} 6... Bg4 {[%clk 0:02:32.8]} 7.
cxd5 {[%clk 0:02:55.8]} 7... Nxd5 {[%clk 0:02:32.3]} 8. Qb3 {[%clk 0:02:56.1]}
8... Bxf3 {[%clk 0:02:16.5]} 9. gxf3 {[%clk 0:02:57]} 9... Nb6 {[%clk
0:02:16.3]} 10. d5 {[%clk 0:02:50.5]} 10... Nd4 {[%clk 0:02:16.1]} 11. Bb5+
{[%clk 0:02:29.4]} 11... Nd7 {[%clk 0:02:14.9]} 12. Qa4 {[%clk 0:02:25]} 12...
Nxf3+ {[%clk 0:02:08.4]} 13. Ke2 {[%clk 0:02:24.1]} 13... Ne5 {[%clk 0:02:03.8]}
14. Bf4 {[%clk 0:02:20.7]} 14... a6 {[%clk 0:02:03.2]} 15. Bxd7+ {[%clk
0:01:56.1]} 15... Nxd7 {[%clk 0:02:04.1]} 16. d6 {[%clk 0:01:30]} 16... exd6
{[%clk 0:02:02.3]} 17. Nd5 {[%clk 0:01:19.7]} 17... Be7 {[%clk 0:01:47.8]} 18.
Rhg1 {[%clk 0:00:48.8]} 18... O-O {[%clk 0:01:43.7]} 19. Bh6 {[%clk 0:00:41.1]}
19... g6 {[%clk 0:01:43.6]} 20. Bxf8 {[%clk 0:00:40.8]} 20... Bxf8 {[%clk
0:01:44.5]} 21. Qxd7 {[%clk 0:00:38.4]} 21... Qh4 {[%clk 0:01:42.8]} 22. Qg4
{[%clk 0:00:33.8]} 22... Re8+ {[%clk 0:01:40.9]} 23. Ne3 {[%clk 0:00:33.9]}
23... Qxh2 {[%clk 0:01:38]} 24. Rg3 {[%clk 0:00:29.9]} 24... Qh6 {[%clk
0:01:34]} 25. Rh3 {[%clk 0:00:28.2]} 25... Qg7 {[%clk 0:01:33.6]} 26. Rah1
{[%clk 0:00:28.4]} 26... Qxb2+ {[%clk 0:01:32.5]} 27. Kf3 {[%clk 0:00:27]} 27...
Bg7 {[%clk 0:01:12.9]} 28. Rxh7 {[%clk 0:00:24.3]} 28... d5 {[%clk 0:01:12.5]}
29. Kg2 {[%clk 0:00:11.6]} 29... Bd4 {[%clk 0:00:28.3]} 30. Qf3 {[%clk 0:00:11]}
30... Bg7 {[%clk 0:00:22.5]} 31. Nxd5 {[%clk 0:00:05.2]} 31... Qe5 {[%clk
0:00:15.4]} 32. Ne3 {[%clk 0:00:05.5]} 32... Qg5+ {[%clk 0:00:15.5]} 33. Qg3
{[%clk 0:00:05.2]} 33... Qc5 {[%clk 0:00:12.3]} 34. Qf3 {[%clk 0:00:05.2]} 34...
Qg5+ {[%clk 0:00:12]} 35. Qg3 {[%clk 0:00:05.8]} 35... Qc5 {[%clk 0:00:12.5]}
36. R7h4 {[%clk 0:00:06.5]} 36... Qc6+ {[%clk 0:00:12.4]} 37. Qf3 {[%clk
0:00:06.6]} 37... Qc5 {[%clk 0:00:10.8]} 38. Rf4 {[%clk 0:00:06.8]} 38... Qg5+
{[%clk 0:00:10.8]} 39. Rg4 {[%clk 0:00:06.9]} 39... Qe5 {[%clk 0:00:11.1]} 40.
Qh3 {[%clk 0:00:06.1]} 40... Qb2 {[%clk 0:00:09.8]} 41. Qh7+ {[%clk 0:00:05.3]}
41... Kf8 {[%clk 0:00:09.3]} 42. Qh3 {[%clk 0:00:05.8]} 42... Qf6 {[%clk
0:00:07.7]} 43. Qf3 {[%clk 0:00:06.2]} 43... Qb2 {[%clk 0:00:08.1]} 44. Rxg6
{[%clk 0:00:06.2]} 44... Rxe3 {[%clk 0:00:06.2]} 45. Qxe3 {[%clk 0:00:05.6]}
45... fxg6 {[%clk 0:00:06.9]} 46. Qf3+ {[%clk 0:00:05.6]} 46... Kg8 {[%clk
0:00:06.8]} 47. Qd5+ {[%clk 0:00:06]} 47... Kf8 {[%clk 0:00:07.3]} 48. Qf3+
{[%clk 0:00:05.7]} 48... Kg8 {[%clk 0:00:07.6]} 49. Qd5+ {[%clk 0:00:06.3]}
49... Kf8 {[%clk 0:00:07.6]} 50. Qd8+ {[%clk 0:00:07]} 50... Kf7 {[%clk
0:00:07.9]} 51. Qd7+ {[%clk 0:00:07.7]} 51... Kg8 {[%clk 0:00:08.5]} 52. Qe6+
{[%clk 0:00:07.7]} 52... Kf8 {[%clk 0:00:08.5]} 53. Qxg6 {[%clk 0:00:07.9]}
53... Qxa2 {[%clk 0:00:08.8]} 54. Rh3 {[%clk 0:00:07]} 54... Qd5+ {[%clk
0:00:08.8]} 55. Rf3+ {[%clk 0:00:07]} 55... Kg8 {[%clk 0:00:09.7]} 56. Qe8+
{[%clk 0:00:07.1]} 56... Kh7 {[%clk 0:00:10]} 57. Qf7 {[%clk 0:00:06.2]} 57...
Qg5+ {[%clk 0:00:08.6]} 58. Kf1 {[%clk 0:00:06.1]} 58... Qc1+ {[%clk 0:00:08.3]}
59. Ke2 {[%clk 0:00:06.4]} 59... Qc2+ {[%clk 0:00:07.6]} 60. Kf1 {[%clk
0:00:06.9]} 60... Qb1+ {[%clk 0:00:06.2]} 61. Kg2 {[%clk 0:00:07.4]} 61... Qe4
{[%clk 0:00:06.9]} 62. Qf5+ {[%clk 0:00:07]} 62... Qxf5 {[%clk 0:00:06.9]} 63.
Rxf5 {[%clk 0:00:07.9]} 63... b5 {[%clk 0:00:07.3]} 64. Rf7 {[%clk 0:00:07.7]}
64... Kg6 {[%clk 0:00:05.1]} 65. Ra7 {[%clk 0:00:06.5]} 65... b4 {[%clk
0:00:05.6]} 66. Rxa6+ {[%clk 0:00:07]} 66... Kf5 {[%clk 0:00:05.8]} 67. Rb6
{[%clk 0:00:07.6]} 67... Bc3 {[%clk 0:00:06.3]} 68. Kf3 {[%clk 0:00:07.2]} 68...
Ke5 {[%clk 0:00:06.4]} 69. Ke2 {[%clk 0:00:07.7]} 69... Kd5 {[%clk 0:00:05.9]}
70. Kd3 {[%clk 0:00:07.8]} 70... Bd4 {[%clk 0:00:04.7]} 71. Rb5+ {[%clk
0:00:08]} 71... Bc5 {[%clk 0:00:04.5]} 72. f4 {[%clk 0:00:08.4]} 72... Kc6
{[%clk 0:00:05]} 73. Kc4 {[%clk 0:00:08]} 73... Bd6 {[%clk 0:00:04.8]} 74. f5
{[%clk 0:00:08.4]} 74... Kd7 {[%clk 0:00:04.2]} 75. Rd5 {[%clk 0:00:08.2]} 75...
Ke7 {[%clk 0:00:04.3]} 76. Kb5 {[%clk 0:00:07.5]} 76... b3 {[%clk 0:00:01.9]}
77. Kc6 {[%clk 0:00:07.9]} 77... b2 {[%clk 0:00:02]} 78. Rd1 {[%clk 0:00:08.1]}
78... Be5 {[%clk 0:00:02.6]} 79. Rb1 {[%clk 0:00:08.2]} 79... Kf6 {[%clk
0:00:03.4]} 80. Kd5 {[%clk 0:00:08.3]} 80... Kxf5 {[%clk 0:00:04]} 81. Rf1+
{[%clk 0:00:08.9]} 81... Kg4 {[%clk 0:00:03.4]} 82. Kxe5 {[%clk 0:00:09]} 82...
Kg3 {[%clk 0:00:03.9]} 83. Rb1 {[%clk 0:00:09.8]} 1-0

[Event "Late-Titled-Tuesday-Blitz-March-19-2024"]
[Site "Chess.com"]
[Date "2024.03.19"]
[Round "1"]
[White "Njal28"]
[Black "PolandHussars"]
[Result "1-0"]
[WhiteElo "3043"]
[BlackElo "2548"]
[TimeControl "180+1"]
[EndTime "14:09:13 PDT"]
[Termination "Njal28 won by checkmate"]

1. e4 {[%clk 0:03:00.9]} 1... e5 {[%clk 0:02:59.9]} 2. Nf3 {[%clk 0:03:01.2]}
2... Nc6 {[%clk 0:03:00]} 3. Bb5 {[%clk 0:02:59.9]} 3... g6 {[%clk 0:03:00]} 4.
Nc3 {[%clk 0:02:57.4]} 4... Bg7 {[%clk 0:02:59.9]} 5. d3 {[%clk 0:02:54.8]} 5...
Nge7 {[%clk 0:03:00]} 6. Bc4 {[%clk 0:02:48.7]} 6... d6 {[%clk 0:02:54.8]} 7. a3
{[%clk 0:02:44.7]} 7... O-O {[%clk 0:02:53.9]} 8. O-O {[%clk 0:02:43.8]} 8... h6
{[%clk 0:02:54.2]} 9. Nd5 {[%clk 0:02:25.9]} 9... Nxd5 {[%clk 0:02:50.4]} 10.
Bxd5 {[%clk 0:02:25.7]} 10... Ne7 {[%clk 0:02:49.2]} 11. Ba2 {[%clk 0:02:25.8]}
11... Kh7 {[%clk 0:02:49.2]} 12. d4 {[%clk 0:02:17.4]} 12... exd4 {[%clk
0:02:36.1]} 13. Nxd4 {[%clk 0:02:18.3]} 13... f5 {[%clk 0:02:35.8]} 14. exf5
{[%clk 0:02:12.1]} 14... Nxf5 {[%clk 0:02:34.5]} 15. Nxf5 {[%clk 0:02:07.6]}
15... Bxf5 {[%clk 0:02:31.9]} 16. c3 {[%clk 0:02:07.8]} 16... Qh4 {[%clk
0:02:24.4]} 17. Bd5 {[%clk 0:01:56.1]} 17... c6 {[%clk 0:02:12.3]} 18. g3 {[%clk
0:01:56]} 18... Qf6 {[%clk 0:02:00.8]} 19. Bg2 {[%clk 0:01:54.3]} 19... d5
{[%clk 0:01:54.4]} 20. Be3 {[%clk 0:01:53.7]} 20... a6 {[%clk 0:01:51.1]} 21.
Bd4 {[%clk 0:01:50.8]} 21... Qf7 {[%clk 0:01:51.2]} 22. Qd2 {[%clk 0:01:47.1]}
22... Rae8 {[%clk 0:01:46.6]} 23. Rae1 {[%clk 0:01:45.6]} 23... Qd7 {[%clk
0:01:25.3]} 24. Rxe8 {[%clk 0:01:05.6]} 24... Rxe8 {[%clk 0:01:24.8]} 25. Re1
{[%clk 0:01:06]} 25... Rxe1+ {[%clk 0:01:10.1]} 26. Qxe1 {[%clk 0:01:06.9]}
26... Qe6 {[%clk 0:01:08.5]} 27. Qxe6 {[%clk 0:01:05.1]} 27... Bxe6 {[%clk
0:01:09.4]} 28. f4 {[%clk 0:00:59.9]} 28... Bf5 {[%clk 0:01:01]} 29. Kf2 {[%clk
0:00:58.9]} 29... Bxd4+ {[%clk 0:00:57.1]} 30. cxd4 {[%clk 0:00:59.2]} 30... Kg7
{[%clk 0:00:57.8]} 31. Ke3 {[%clk 0:00:56.6]} 31... Kf6 {[%clk 0:00:57.8]} 32.
Kd2 {[%clk 0:00:50.4]} 32... Ke6 {[%clk 0:00:57.3]} 33. Kc3 {[%clk 0:00:45.9]}
33... Kd6 {[%clk 0:00:57.7]} 34. Bf3 {[%clk 0:00:40.4]} 34... b6 {[%clk
0:00:56.3]} 35. g4 {[%clk 0:00:32.2]} 35... Be6 {[%clk 0:00:54.2]} 36. b4 {[%clk
0:00:31.2]} 36... c5 {[%clk 0:00:53.9]} 37. bxc5+ {[%clk 0:00:25.4]} 37... bxc5
{[%clk 0:00:54.4]} 38. Be2 {[%clk 0:00:26.3]} 38... c4 {[%clk 0:00:51.9]} 39.
Kb4 {[%clk 0:00:26.7]} 39... Kc6 {[%clk 0:00:51.7]} 40. h3 {[%clk 0:00:19.5]}
40... Kb6 {[%clk 0:00:51.7]} 41. Bd1 {[%clk 0:00:18.4]} 41... a5+ {[%clk
0:00:51.2]} 42. Kc3 {[%clk 0:00:18.7]} 42... Bd7 {[%clk 0:00:50.2]} 43. Bc2
{[%clk 0:00:18.8]} 43... Be8 {[%clk 0:00:47.7]} 44. f5 {[%clk 0:00:07.1]} 44...
gxf5 {[%clk 0:00:48.5]} 45. Bxf5 {[%clk 0:00:06.9]} 45... Kc6 {[%clk 0:00:46.5]}
46. h4 {[%clk 0:00:02.9]} 46... Kd6 {[%clk 0:00:46.9]} 47. g5 {[%clk 0:00:03.3]}
47... hxg5 {[%clk 0:00:46.1]} 48. hxg5 {[%clk 0:00:04.2]} 48... Bd7 {[%clk
0:00:39]} 49. Bh7 {[%clk 0:00:04.5]} 49... Ke7 {[%clk 0:00:37.3]} 50. Kd2 {[%clk
0:00:04.9]} 50... Kf7 {[%clk 0:00:36.8]} 51. Ke3 {[%clk 0:00:05.1]} 51... Kg7
{[%clk 0:00:31.9]} 52. Bc2 {[%clk 0:00:05.3]} 52... Be8 {[%clk 0:00:32.4]} 53.
Kd2 {[%clk 0:00:02.5]} 53... Bg6 {[%clk 0:00:32.2]} 54. Bd1 {[%clk 0:00:03.2]}
54... Be4 {[%clk 0:00:30.1]} 55. Bh5 {[%clk 0:00:03.9]} 55... Bf5 {[%clk
0:00:30.2]} 56. Bf3 {[%clk 0:00:03.5]} 56... Be6 {[%clk 0:00:26.2]} 57. Bh5
{[%clk 0:00:04.1]} 57... Bf7 {[%clk 0:00:26.3]} 58. Bd1 {[%clk 0:00:01.6]} 58...
Kg6 {[%clk 0:00:25.7]} 59. Ke3 {[%clk 0:00:02.1]} 59... Kxg5 {[%clk 0:00:26.1]}
60. Bc2 {[%clk 0:00:02.7]} 60... Bg6 {[%clk 0:00:26.3]} 61. Ba4 {[%clk
0:00:02.8]} 61... c3 {[%clk 0:00:25.5]} 62. Bb3 {[%clk 0:00:03.4]} 62... c2
{[%clk 0:00:25.7]} 63. Kd2 {[%clk 0:00:03.8]} 63... Kf4 {[%clk 0:00:26.2]} 64.
Bxd5 {[%clk 0:00:04.1]} 64... Bh7 {[%clk 0:00:25]} 65. Bb3 {[%clk 0:00:04.4]}
65... Bg6 {[%clk 0:00:23.4]} 66. Bxc2 {[%clk 0:00:04.8]} 66... Be8 {[%clk
0:00:20]} 67. Kc3 {[%clk 0:00:05.3]} 67... Bd7 {[%clk 0:00:18.8]} 68. Kc4 {[%clk
0:00:05.8]} 68... Be6+ {[%clk 0:00:18.5]} 69. d5 {[%clk 0:00:04.3]} 69... Bd7
{[%clk 0:00:18.9]} 70. Kc5 {[%clk 0:00:04.8]} 70... Ke5 {[%clk 0:00:19.6]} 71.
d6 {[%clk 0:00:05.4]} 71... Bc8 {[%clk 0:00:18.7]} 72. Bd3 {[%clk 0:00:06]}
72... Bd7 {[%clk 0:00:18.9]} 73. Ba6 {[%clk 0:00:06.1]} 73... a4 {[%clk
0:00:18.9]} 74. Bb7 {[%clk 0:00:06.3]} 74... Ke6 {[%clk 0:00:19.3]} 75. Bd5+
{[%clk 0:00:06.4]} 75... Ke5 {[%clk 0:00:19.6]} 76. Bc6 {[%clk 0:00:07.2]} 76...
Bc8 {[%clk 0:00:19.5]} 77. Bxa4 {[%clk 0:00:07.5]} 77... Ke6 {[%clk 0:00:19.6]}
78. Bc6 {[%clk 0:00:07.2]} 78... Bd7 {[%clk 0:00:19.6]} 79. a4 {[%clk
0:00:07.8]} 79... Bxc6 {[%clk 0:00:19.9]} 80. Kxc6 {[%clk 0:00:08.7]} 80... Kf7
{[%clk 0:00:08.6]} 81. a5 {[%clk 0:00:09.6]} 81... Kg7 {[%clk 0:00:09.2]} 82. a6
{[%clk 0:00:10.5]} 82... Kh7 {[%clk 0:00:10.1]} 83. a7 {[%clk 0:00:11.4]} 83...
Kg7 {[%clk 0:00:11]} 84. a8=Q {[%clk 0:00:11.7]} 84... Kh7 {[%clk 0:00:11.9]}
85. Qb7+ {[%clk 0:00:12]} 85... Kg6 {[%clk 0:00:11.6]} 86. Qe7 {[%clk
0:00:12.3]} 86... Kh6 {[%clk 0:00:11.9]} 87. Qe1 {[%clk 0:00:12.8]} 87... Kg6
{[%clk 0:00:12.8]} 88. Qf1 {[%clk 0:00:13.2]} 88... Kh6 {[%clk 0:00:03.8]} 89.
Qg1 {[%clk 0:00:14.1]} 89... Kh7 {[%clk 0:00:01.9]} 90. Qg5 {[%clk 0:00:14.1]}
90... Kh8 {[%clk 0:00:02.8]} 91. Kd5 {[%clk 0:00:14.5]} 91... Kh7 {[%clk
0:00:03.3]} 92. Ke6 {[%clk 0:00:15.4]} 92... Kh8 {[%clk 0:00:04.2]} 93. Kf7
{[%clk 0:00:16.3]} 93... Kh7 {[%clk 0:00:05.1]} 94. Qh4# {[%clk 0:00:17.2]} 1-0

[Event "Late-Titled-Tuesday-Blitz-March-19-2024"]
[Site "Chess.com"]
[Date "2024.03.19"]
[Round "1"]
[White "Oleksandr_Bortnyk"]
[Black "yaguigor"]
[Result "1-0"]
[WhiteElo "3076"]
[BlackElo "2559"]
[TimeControl "180+1"]
[EndTime "14:09:20 PDT"]
[Termination "Oleksandr_Bortnyk won on time"]

1. e4 {[%clk 0:02:59.9]} 1... c5 {[%clk 0:02:57.5]} 2. c3 {[%clk 0:03:00]} 2...
Nf6 {[%clk 0:02:56.2]} 3. e5 {[%clk 0:02:59]} 3... Nd5 {[%clk 0:02:56.9]} 4. Nf3
{[%clk 0:02:59.9]} 4... Nc6 {[%clk 0:02:55.3]} 5. d4 {[%clk 0:02:46.7]} 5...
cxd4 {[%clk 0:02:55]} 6. cxd4 {[%clk 0:02:46.3]} 6... d6 {[%clk 0:02:54.5]} 7.
Bc4 {[%clk 0:02:46.2]} 7... e6 {[%clk 0:02:54.8]} 8. O-O {[%clk 0:02:45.9]} 8...
Be7 {[%clk 0:02:54.2]} 9. Qe2 {[%clk 0:02:46.1]} 9... O-O {[%clk 0:02:54.4]} 10.
Rd1 {[%clk 0:02:45.9]} 10... Na5 {[%clk 0:02:52.9]} 11. Bxd5 {[%clk 0:02:43.3]}
11... exd5 {[%clk 0:02:52.2]} 12. Nc3 {[%clk 0:02:44.1]} 12... Be6 {[%clk
0:02:51]} 13. Bf4 {[%clk 0:02:43.8]} 13... Nc6 {[%clk 0:02:47.9]} 14. exd6
{[%clk 0:02:40]} 14... Bxd6 {[%clk 0:02:47]} 15. Bxd6 {[%clk 0:02:40.9]} 15...
Qxd6 {[%clk 0:02:46.3]} 16. h3 {[%clk 0:02:41.8]} 16... a6 {[%clk 0:02:40.3]}
17. Rac1 {[%clk 0:02:41]} 17... Rfe8 {[%clk 0:02:37.7]} 18. Qd2 {[%clk
0:02:40.8]} 18... Bf5 {[%clk 0:02:34.5]} 19. Re1 {[%clk 0:02:01.5]} 19... h6
{[%clk 0:02:28.3]} 20. Re3 {[%clk 0:01:51.6]} 20... Be4 {[%clk 0:02:22.3]} 21.
Rce1 {[%clk 0:01:49.3]} 21... Re7 {[%clk 0:02:20.1]} 22. Nxe4 {[%clk 0:01:43.2]}
22... dxe4 {[%clk 0:02:17.6]} 23. Rxe4 {[%clk 0:01:44.1]} 23... Rxe4 {[%clk
0:02:14.3]} 24. Rxe4 {[%clk 0:01:45]} 24... Qd5 {[%clk 0:02:14.4]} 25. Qe3
{[%clk 0:01:38.9]} 25... Qxa2 {[%clk 0:02:10.1]} 26. Re8+ {[%clk 0:01:35.9]}
26... Rxe8 {[%clk 0:02:08.9]} 27. Qxe8+ {[%clk 0:01:36.8]} 27... Kh7 {[%clk
0:02:09.1]} 28. Qe4+ {[%clk 0:01:37.7]} 28... g6 {[%clk 0:01:42.4]} 29. d5
{[%clk 0:01:38.1]} 29... Na5 {[%clk 0:01:31]} 30. b4 {[%clk 0:01:21]} 30... Nc4
{[%clk 0:01:27.1]} 31. Qe7 {[%clk 0:01:21.1]} 31... Qb1+ {[%clk 0:01:26]} 32.
Kh2 {[%clk 0:01:21.3]} 32... Qf5 {[%clk 0:01:26.6]} 33. Qxb7 {[%clk 0:01:10.3]}
33... Qf4+ {[%clk 0:01:26.5]} 34. Kg1 {[%clk 0:01:00.1]} 34... Qc1+ {[%clk
0:01:25.4]} 35. Kh2 {[%clk 0:01:00.8]} 35... Qf4+ {[%clk 0:01:25.3]} 36. Kh1
{[%clk 0:01:01.3]} 36... Ne5 {[%clk 0:00:58.4]} 37. d6 {[%clk 0:00:50]} 37...
Nxf3 {[%clk 0:00:50]} 38. Qxf3 {[%clk 0:00:50.9]} 38... Qxd6 {[%clk 0:00:49.8]}
39. Qxf7+ {[%clk 0:00:49.2]} 39... Kh8 {[%clk 0:00:50.4]} 40. Qe8+ {[%clk
0:00:37.6]} 40... Kg7 {[%clk 0:00:49.8]} 41. Qe4 {[%clk 0:00:38.5]} 41... g5
{[%clk 0:00:45.8]} 42. g3 {[%clk 0:00:32.9]} 42... Qd2 {[%clk 0:00:38.7]} 43.
Qb7+ {[%clk 0:00:29.3]} 43... Kg8 {[%clk 0:00:37]} 44. Qc8+ {[%clk 0:00:25.8]}
44... Kg7 {[%clk 0:00:36.5]} 45. Qb7+ {[%clk 0:00:26.7]} 45... Kg8 {[%clk
0:00:35.9]} 46. Kg2 {[%clk 0:00:27.6]} 46... Qd6 {[%clk 0:00:33.4]} 47. Qa8+
{[%clk 0:00:24.9]} 47... Kg7 {[%clk 0:00:32.6]} 48. Qe4 {[%clk 0:00:25.8]} 48...
Qf6 {[%clk 0:00:28.8]} 49. h4 {[%clk 0:00:23.8]} 49... gxh4 {[%clk 0:00:27.4]}
50. Qxh4 {[%clk 0:00:24.7]} 50... Qc6+ {[%clk 0:00:26.7]} 51. Kg1 {[%clk
0:00:24.6]} 51... Qc1+ {[%clk 0:00:25.5]} 52. Kh2 {[%clk 0:00:25.1]} 52... Qc6
{[%clk 0:00:22.3]} 53. Qg4+ {[%clk 0:00:24.6]} 53... Kh7 {[%clk 0:00:20.5]} 54.
Qf5+ {[%clk 0:00:24]} 54... Kg7 {[%clk 0:00:20.4]} 55. Qf4 {[%clk 0:00:24.9]}
55... Kh7 {[%clk 0:00:18.2]} 56. Qg4 {[%clk 0:00:24.5]} 56... Qd6 {[%clk
0:00:15]} 57. Qe4+ {[%clk 0:00:23]} 57... Kg7 {[%clk 0:00:14.2]} 58. Kg2 {[%clk
0:00:23.3]} 58... Qf6 {[%clk 0:00:12.4]} 59. Qg4+ {[%clk 0:00:21.9]} 59... Kh7
{[%clk 0:00:11.8]} 60. Qd7+ {[%clk 0:00:22]} 60... Kh8 {[%clk 0:00:11.2]} 61.
Qc8+ {[%clk 0:00:21.6]} 61... Kg7 {[%clk 0:00:11]} 62. Qb7+ {[%clk 0:00:21.7]}
62... Kh8 {[%clk 0:00:10.9]} 63. Qe4 {[%clk 0:00:22]} 63... Kg7 {[%clk 0:00:10]}
64. g4 {[%clk 0:00:22.2]} 64... Qd6 {[%clk 0:00:08.5]} 65. Qb7+ {[%clk
0:00:21.8]} 65... Kf6 {[%clk 0:00:06.9]} 66. Qe4 {[%clk 0:00:22.7]} 66... Kg7
{[%clk 0:00:06.7]} 67. Kh3 {[%clk 0:00:23]} 67... Qf6 {[%clk 0:00:05.4]} 68. Kg3
{[%clk 0:00:21.4]} 68... Qd6+ {[%clk 0:00:05]} 69. f4 {[%clk 0:00:21.1]} 69...
Qb6 {[%clk 0:00:03.2]} 70. Qe5+ {[%clk 0:00:18.6]} 70... Kh7 {[%clk 0:00:03.7]}
71. Qe4+ {[%clk 0:00:16.4]} 71... Kg7 {[%clk 0:00:03.9]} 72. Kf3 {[%clk
0:00:14.1]} 72... Qg1 {[%clk 0:00:02.5]} 73. Qb7+ {[%clk 0:00:12.4]} 73... Kg8
{[%clk 0:00:02.1]} 74. Qc8+ {[%clk 0:00:13]} 74... Kg7 {[%clk 0:00:02.4]} 75.
Qc3+ {[%clk 0:00:11.3]} 75... Kg8 {[%clk 0:00:02.3]} 76. Qc4+ {[%clk 0:00:10.5]}
76... Kg7 {[%clk 0:00:02.3]} 77. f5 {[%clk 0:00:03.9]} 77... Qh1+ {[%clk
0:00:01.4]} 78. Ke3 {[%clk 0:00:04.5]} 78... Qg1+ {[%clk 0:00:01.6]} 79. Kd3
{[%clk 0:00:04.7]} 79... Qf1+ {[%clk 0:00:01.6]} 80. Kc3 {[%clk 0:00:05.2]}
80... Qe1+ {[%clk 0:00:01.5]} 81. Kd4 {[%clk 0:00:04.7]} 81... Qg3 {[%clk
0:00:01.2]} 82. Kd5 {[%clk 0:00:04.1]} 82... Kf6 {[%clk 0:00:01.5]} 83. Qc6+
{[%clk 0:00:02.7]} 83... Kg7 {[%clk 0:00:01.7]} 84. Qg6+ {[%clk 0:00:03.2]}
84... Kf8 {[%clk 0:00:02.1]} 85. Qxh6+ {[%clk 0:00:04.1]} 85... Ke8 {[%clk
0:00:02.4]} 86. Qe6+ {[%clk 0:00:04.3]} 86... Kf8 {[%clk 0:00:02.6]} 87. Qd6+
{[%clk 0:00:05.2]} 1-0